{"text_format":"1","workbook":"xlsx","n_sheets":10,"sheets":["Document History","Summary"," Defect Data Pareto","Pareto","Data_Entry_Fish_Bone","Fish_Bone","5 Why ","Actions Proposed","Action-Difficulty Benefit ","Action-Difficulty Benefit Grid"],"not_rendered":{"charts":3,"images":13,"macros":1,"external_links":5,"defined_names":63,"comments":3,"pivot_tables":1},"unopened":[{"sheet":"Action-Difficulty Benefit Grid","index":9,"reason":"not_a_worksheet"}],"bounds":{"document_bytes":16777216,"sheet_cells":100000,"rows_first":2000,"rows_last":500,"rows_between":2000,"halvings":0,"cell_chars":16384,"cell_head_chars":4096},"cells_cut":0,"cells_raw":0,"read":"whole","date_system":"1900"}

{"sheet":"Document History","index":0,"n_rows":44,"n_cols":5,"rows_kept":44,"cut":false,"hidden":false,"merged":[]}
["UniQuE"]
["Root Cause Analysis"]
["(Engagement Name and Id)"]
["(Client)"]
[]
[]
[]
["Document History"]
[]
["Version","Date","Author","Changes"]
[]
[]
[]
[]
[]
["Review And Approval"]
[]
["Company","Role","Name","Date","Signature"]
[]
[]
[]
[]
[]
[]
["Distribution"]
[]
["Company","Name","Number","Media","Action"]
[]
[]
[]
[]
[]
[]
["Storage"]
[]
["Location","Access","Administrator"]
[]
[]
[]
[]
[]
["Company Confidential - Copyright © 2017 Capgemini - All rights reserved"]
[]
["Template Version Number:Group Reference v1.0"]

{"sheet":"Summary","index":1,"n_rows":7,"n_cols":3,"rows_kept":7,"cut":false,"hidden":false,"merged":[[1,1,1,2]]}
[]
[null,"RCA Summary"]
[]
[null,"Problem Statement"]
[null,"Techniques Used & Inference"]
[null,"Root Causes Identified"]
[null,"Actions Identified","<<Detailed actions to be filled in the Action Proposed tab"]

{"sheet":" Defect Data Pareto","index":2,"n_rows":39,"n_cols":7,"rows_kept":39,"cut":false,"hidden":false,"merged":[]}
[]
["Defect ID/Ticket Number/Problem","Defect/Problem Description","Cause code/Cause Category",null,null,null,"Category List"]
[1,"AAAAA","ABC",null,null,null,"Change in scope"]
[2,"BBBBB","ABC",null,null,null,"High # defects"]
[3,"CCCCC","Insufficient training",null,null,null,"Insufficient training"]
[4,"AAAAA","ABC",null,null,null,"Incorrect Planning"]
[5,"uuuuuuuuuuu","Insufficient training",null,null,null,"Improper Coding/Implementation"]
[6,"kkkkkkkkkkk","Change in scope",null,null,null,"ABC"]
[7,"BBBBB","High # defects"]
[8,"mmmmmmmmmmmmm","High # defects"]
[9,"CCCCC","ABC"]
[10,"oooooooooo","ABC"]
[11,"AAAAA","ABC"]
[12,"AAAAA","ABC"]
[13,"rrrrrrrrrrrrrrrrrrr","ABC"]
[14,"ssssssssssssss","ABC"]
[15,"tttttttttttttttt","ABC"]
[16,"AAAAA","ABC"]
[null,null,"ABC"]
[null,"AAAAA","ABC"]
[null,"BBBBB","Insufficient training"]
[null,"CCCCC","ABC"]
[null,"AAAAA","Insufficient training"]
[null,"uuuuuuuuuuu","ABC"]
[null,"kkkkkkkkkkk","Improper Coding/Implementation"]
[null,"BBBBB","Improper Coding/Implementation"]
[null,"mmmmmmmmmmmmm","Incorrect Planning"]
[null,"CCCCC","Incorrect Planning"]
[null,"oooooooooo","Incorrect Planning"]
[null,"AAAAA","Incorrect Planning"]
[null,"AAAAA","Incorrect Planning"]
[null,"rrrrrrrrrrrrrrrrrrr","Incorrect Planning"]
[null,"ssssssssssssss","Incorrect Planning"]
[null,"tttttttttttttttt","Incorrect Planning"]
[null,"AAAAA","Incorrect Planning"]
[null,"BBBBB","Incorrect Planning"]
[null,"AAAAA","Incorrect Planning"]
[null,"BBBBB","Incorrect Planning"]
[null,"CCCCC","Incorrect Planning"]

{"sheet":"Pareto","index":3,"n_rows":1000,"n_cols":33,"rows_kept":1000,"cut":false,"hidden":false,"merged":[]}
["Count of Defect/Problem Description",null,null,null,null,null,null,null,null,null,null,null,null,null,null,null,null,null,null,null,null,null,null,null,null,null,null,null,null,null,null,"Defect ID/Ticket Number/Problem","(All)"]
["Cause code/Cause Category","Total","Cumulative Frequency","Percentage"]
["ABC",14,{"$f":"IF(B3=\"\",\"\",B3)","v":14},{"$f":"IF(C3=\"\",\"\",(C3/SUM($B$3:$B$5000))*100)","v":38.888888888888893},null,null,null,null,null,null,null,null,null,null,null,null,null,null,null,null,null,null,null,null,null,null,null,null,null,null,null,"Count of Defect/Problem Description"]
["Incorrect Planning",13,{"$f":"IF(B4 = \"\",C3,C3+B4)","v":27},{"$f":"IF(C4=\"\",\"\",(C4/SUM($B$3:$B$5000))*100)","v":75},null,null,null,null,null,null,null,null,null,null,null,null,null,null,null,null,null,null,null,null,null,null,null,null,null,null,null,"Cause code/Cause Category","Total"]
["Insufficient training",4,{"$f":"IF(B5 = \"\",C4,C4+B5)","v":31},86.111111111111114,null,null,null,null,null,null,null,null,null,null,null,null,null,null,null,null,null,null,null,null,null,null,null,null,null,null,null,"High # defects",2]
["High # defects",2,33,91.666666666666657,null,null,null,null,null,null,null,null,null,null,null,null,null,null,null,null,null,null,null,null,null,null,null,null,null,null,null,"Incorrect Planning",13]
["Improper Coding/Implementation",2,35,97.222222222222214,null,null,null,null,null,null,null,null,null,null,null,null,null,null,null,null,null,null,null,null,null,null,null,null,null,null,null,"Insufficient training",4]
["Change in scope",1,36,100,null,null,null,null,null,null,null,null,null,null,null,null,null,null,null,null,null,null,null,null,null,null,null,null,null,null,null,"Change in scope",1]
[null,null,36,100,null,null,null,null,null,null,null,null,null,null,null,null,null,null,null,null,null,null,null,null,null,null,null,null,null,null,null,"Improper Coding/Implementation",2]
[null,null,36,100,null,null,null,null,null,null,null,null,null,null,null,null,null,null,null,null,null,null,null,null,null,null,null,null,null,null,null,"ABC",14]
[null,null,36,100,null,null,null,null,null,null,null,null,null,null,null,null,null,null,null,null,null,null,null,null,null,null,null,null,null,null,null,"Grand Total",36]
[null,null,36,100]
[null,null,36,100]
[null,null,36,100]
[null,null,36,100]
[null,null,36,100]
[null,null,36,100]
[null,null,36,100]
[null,null,36,100]
[null,null,36,100]
[null,null,36,100]
[null,null,36,100]
[null,null,36,100]
[null,null,36,100]
[null,null,36,100]
[null,null,36,100]
[null,null,36,100]
[null,null,36,100]
[null,null,36,100]
[null,null,36,100]
[null,null,36,100]
[null,null,36,100]
[null,null,36,100]
[null,null,36,100]
[null,null,36,100]
[null,null,36,100]
[null,null,36,100]
[null,null,36,100]
[null,null,36,100]
[null,null,36,100]
[null,null,36,100]
[null,null,36,100]
[null,null,36,100]
[null,null,36,100]
[null,null,36,100]
[null,null,36,100]
[null,null,36,100]
[null,null,36,100]
[null,null,36,100]
[null,null,36,100]
[null,null,36,100]
[null,null,36,100]
[null,null,36,100]
[null,null,36,100]
[null,null,36,100]
[null,null,36,100]
[null,null,36,100]
[null,null,36,100]
[null,null,36,100]
[null,null,36,100]
[null,null,36,100]
[null,null,36,100]
[null,null,36,100]
[null,null,36,100]
[null,null,36,100]
[null,null,36,100]
[null,null,36,100]
[null,null,36,{"$f":"IF(C68=\"\",\"\",(C68/SUM($B$3:$B$5000))*100)","v":100}]
[null,null,{"$f":"IF(B69 = \"\",C68,C68+B69)","v":36},100]
[null,null,36,100]
[null,null,36,100]
[null,null,36,100]
[null,null,36,100]
[null,null,36,100]
[null,null,36,100]
[null,null,36,100]
[null,null,36,100]
[null,null,36,100]
[null,null,36,100]
[null,null,36,100]
[null,null,36,100]
[null,null,36,100]
[null,null,36,100]
[null,null,36,100]
[null,null,36,100]
[null,null,36,100]
[null,null,36,100]
[null,null,36,100]
[null,null,36,100]
[null,null,36,100]
[null,null,36,100]
[null,null,36,100]
[null,null,36,100]
[null,null,36,100]
[null,null,36,100]
[null,null,36,100]
[null,null,36,100]
[null,null,36,100]
[null,null,36,100]
[null,null,36,100]
[null,null,36,100]
[null,null,36,100]
[null,null,36,100]
[null,null,36,100]
[null,null,36,100]
[null,null,36,100]
[null,null,36,100]
[null,null,36,100]
[null,null,36,100]
[null,null,36,100]
[null,null,36,100]
[null,null,36,100]
[null,null,36,100]
[null,null,36,100]
[null,null,36,100]
[null,null,36,100]
[null,null,36,100]
[null,null,36,100]
[null,null,36,100]
[null,null,36,100]
[null,null,36,100]
[null,null,36,100]
[null,null,36,100]
[null,null,36,100]
[null,null,36,100]
[null,null,36,100]
[null,null,36,100]
[null,null,36,100]
[null,null,36,100]
[null,null,36,100]
[null,null,36,100]
[null,null,36,{"$f":"IF(C132=\"\",\"\",(C132/SUM($B$3:$B$5000))*100)","v":100}]
[null,null,{"$f":"IF(B133 = \"\",C132,C132+B133)","v":36},100]
[null,null,36,100]
[null,null,36,100]
[null,null,36,100]
[null,null,36,100]
[null,null,36,100]
[null,null,36,100]
[null,null,36,100]
[null,null,36,100]
[null,null,36,100]
[null,null,36,100]
[null,null,36,100]
[null,null,36,100]
[null,null,36,100]
[null,null,36,100]
[null,null,36,100]
[null,null,36,100]
[null,null,36,100]
[null,null,36,100]
[null,null,36,100]
[null,null,36,100]
[null,null,36,100]
[null,null,36,100]
[null,null,36,100]
[null,null,36,100]
[null,null,36,100]
[null,null,36,100]
[null,null,36,100]
[null,null,36,100]
[null,null,36,100]
[null,null,36,100]
[null,null,36,100]
[null,null,36,100]
[null,null,36,100]
[null,null,36,100]
[null,null,36,100]
[null,null,36,100]
[null,null,36,100]
[null,null,36,100]
[null,null,36,100]
[null,null,36,100]
[null,null,36,100]
[null,null,36,100]
[null,null,36,100]
[null,null,36,100]
[null,null,36,100]
[null,null,36,100]
[null,null,36,100]
[null,null,36,100]
[null,null,36,100]
[null,null,36,100]
[null,null,36,100]
[null,null,36,100]
[null,null,36,100]
[null,null,36,100]
[null,null,36,100]
[null,null,36,100]
[null,null,36,100]
[null,null,36,100]
[null,null,36,100]
[null,null,36,100]
[null,null,36,100]
[null,null,36,100]
[null,null,36,{"$f":"IF(C196=\"\",\"\",(C196/SUM($B$3:$B$5000))*100)","v":100}]
[null,null,{"$f":"IF(B197 = \"\",C196,C196+B197)","v":36},100]
[null,null,36,100]
[null,null,36,100]
[null,null,36,100]
[null,null,36,100]
[null,null,36,100]
[null,null,36,100]
[null,null,36,100]
[null,null,36,100]
[null,null,36,100]
[null,null,36,100]
[null,null,36,100]
[null,null,36,100]
[null,null,36,100]
[null,null,36,100]
[null,null,36,100]
[null,null,36,100]
[null,null,36,100]
[null,null,36,100]
[null,null,36,100]
[null,null,36,100]
[null,null,36,100]
[null,null,36,100]
[null,null,36,100]
[null,null,36,100]
[null,null,36,100]
[null,null,36,100]
[null,null,36,100]
[null,null,36,100]
[null,null,36,100]
[null,null,36,100]
[null,null,36,100]
[null,null,36,100]
[null,null,36,100]
[null,null,36,100]
[null,null,36,100]
[null,null,36,100]
[null,null,36,100]
[null,null,36,100]
[null,null,36,100]
[null,null,36,100]
[null,null,36,100]
[null,null,36,100]
[null,null,36,100]
[null,null,36,100]
[null,null,36,100]
[null,null,36,100]
[null,null,36,100]
[null,null,36,100]
[null,null,36,100]
[null,null,36,100]
[null,null,36,100]
[null,null,36,100]
[null,null,36,100]
[null,null,36,100]
[null,null,36,100]
[null,null,36,100]
[null,null,36,100]
[null,null,36,100]
[null,null,36,100]
[null,null,36,100]
[null,null,36,100]
[null,null,36,100]
[null,null,36,{"$f":"IF(C260=\"\",\"\",(C260/SUM($B$3:$B$5000))*100)","v":100}]
[null,null,{"$f":"IF(B261 = \"\",C260,C260+B261)","v":36},100]
[null,null,36,100]
[null,null,36,100]
[null,null,36,100]
[null,null,36,100]
[null,null,36,100]
[null,null,36,100]
[null,null,36,100]
[null,null,36,100]
[null,null,36,100]
[null,null,36,100]
[null,null,36,100]
[null,null,36,100]
[null,null,36,100]
[null,null,36,100]
[null,null,36,100]
[null,null,36,100]
[null,null,36,100]
[null,null,36,100]
[null,null,36,100]
[null,null,36,100]
[null,null,36,100]
[null,null,36,100]
[null,null,36,100]
[null,null,36,100]
[null,null,36,100]
[null,null,36,100]
[null,null,36,100]
[null,null,36,100]
[null,null,36,100]
[null,null,36,100]
[null,null,36,100]
[null,null,36,100]
[null,null,36,100]
[null,null,36,100]
[null,null,36,100]
[null,null,36,100]
[null,null,36,100]
[null,null,36,100]
[null,null,36,100]
[null,null,36,100]
[null,null,36,100]
[null,null,36,100]
[null,null,36,100]
[null,null,36,100]
[null,null,36,100]
[null,null,36,100]
[null,null,36,100]
[null,null,36,100]
[null,null,36,100]
[null,null,36,100]
[null,null,36,100]
[null,null,36,100]
[null,null,36,100]
[null,null,36,100]
[null,null,36,100]
[null,null,36,100]
[null,null,36,100]
[null,null,36,100]
[null,null,36,100]
[null,null,36,100]
[null,null,36,100]
[null,null,36,100]
[null,null,36,{"$f":"IF(C324=\"\",\"\",(C324/SUM($B$3:$B$5000))*100)","v":100}]
[null,null,{"$f":"IF(B325 = \"\",C324,C324+B325)","v":36},100]
[null,null,36,100]
[null,null,36,100]
[null,null,36,100]
[null,null,36,100]
[null,null,36,100]
[null,null,36,100]
[null,null,36,100]
[null,null,36,100]
[null,null,36,100]
[null,null,36,100]
[null,null,36,100]
[null,null,36,100]
[null,null,36,100]
[null,null,36,100]
[null,null,36,100]
[null,null,36,100]
[null,null,36,100]
[null,null,36,100]
[null,null,36,100]
[null,null,36,100]
[null,null,36,100]
[null,null,36,100]
[null,null,36,100]
[null,null,36,100]
[null,null,36,100]
[null,null,36,100]
[null,null,36,100]
[null,null,36,100]
[null,null,36,100]
[null,null,36,100]
[null,null,36,100]
[null,null,36,100]
[null,null,36,100]
[null,null,36,100]
[null,null,36,100]
[null,null,36,100]
[null,null,36,100]
[null,null,36,100]
[null,null,36,100]
[null,null,36,100]
[null,null,36,100]
[null,null,36,100]
[null,null,36,100]
[null,null,36,100]
[null,null,36,100]
[null,null,36,100]
[null,null,36,100]
[null,null,36,100]
[null,null,36,100]
[null,null,36,100]
[null,null,36,100]
[null,null,36,100]
[null,null,36,100]
[null,null,36,100]
[null,null,36,100]
[null,null,36,100]
[null,null,36,100]
[null,null,36,100]
[null,null,36,100]
[null,null,36,100]
[null,null,36,100]
[null,null,36,100]
[null,null,36,{"$f":"IF(C388=\"\",\"\",(C388/SUM($B$3:$B$5000))*100)","v":100}]
[null,null,{"$f":"IF(B389 = \"\",C388,C388+B389)","v":36},100]
[null,null,36,100]
[null,null,36,100]
[null,null,36,100]
[null,null,36,100]
[null,null,36,100]
[null,null,36,100]
[null,null,36,100]
[null,null,36,100]
[null,null,36,100]
[null,null,36,100]
[null,null,36,100]
[null,null,36,100]
[null,null,36,100]
[null,null,36,100]
[null,null,36,100]
[null,null,36,100]
[null,null,36,100]
[null,null,36,100]
[null,null,36,100]
[null,null,36,100]
[null,null,36,100]
[null,null,36,100]
[null,null,36,100]
[null,null,36,100]
[null,null,36,100]
[null,null,36,100]
[null,null,36,100]
[null,null,36,100]
[null,null,36,100]
[null,null,36,100]
[null,null,36,100]
[null,null,36,100]
[null,null,36,100]
[null,null,36,100]
[null,null,36,100]
[null,null,36,100]
[null,null,36,100]
[null,null,36,100]
[null,null,36,100]
[null,null,36,100]
[null,null,36,100]
[null,null,36,100]
[null,null,36,100]
[null,null,36,100]
[null,null,36,100]
[null,null,36,100]
[null,null,36,100]
[null,null,36,100]
[null,null,36,100]
[null,null,36,100]
[null,null,36,100]
[null,null,36,100]
[null,null,36,100]
[null,null,36,100]
[null,null,36,100]
[null,null,36,100]
[null,null,36,100]
[null,null,36,100]
[null,null,36,100]
[null,null,36,100]
[null,null,36,100]
[null,null,36,100]
[null,null,36,{"$f":"IF(C452=\"\",\"\",(C452/SUM($B$3:$B$5000))*100)","v":100}]
[null,null,{"$f":"IF(B453 = \"\",C452,C452+B453)","v":36},100]
[null,null,36,100]
[null,null,36,100]
[null,null,36,100]
[null,null,36,100]
[null,null,36,100]
[null,null,36,100]
[null,null,36,100]
[null,null,36,100]
[null,null,36,100]
[null,null,36,100]
[null,null,36,100]
[null,null,36,100]
[null,null,36,100]
[null,null,36,100]
[null,null,36,100]
[null,null,36,100]
[null,null,36,100]
[null,null,36,100]
[null,null,36,100]
[null,null,36,100]
[null,null,36,100]
[null,null,36,100]
[null,null,36,100]
[null,null,36,100]
[null,null,36,100]
[null,null,36,100]
[null,null,36,100]
[null,null,36,100]
[null,null,36,100]
[null,null,36,100]
[null,null,36,100]
[null,null,36,100]
[null,null,36,100]
[null,null,36,100]
[null,null,36,100]
[null,null,36,100]
[null,null,36,100]
[null,null,36,100]
[null,null,36,100]
[null,null,36,100]
[null,null,36,100]
[null,null,36,100]
[null,null,36,100]
[null,null,36,100]
[null,null,36,100]
[null,null,36,100]
[null,null,36,100]
[null,null,36,100]
[null,null,36,100]
[null,null,36,100]
[null,null,36,100]
[null,null,36,100]
[null,null,36,100]
[null,null,36,100]
[null,null,36,100]
[null,null,36,100]
[null,null,36,100]
[null,null,36,100]
[null,null,36,100]
[null,null,36,100]
[null,null,36,100]
[null,null,36,100]
[null,null,36,{"$f":"IF(C516=\"\",\"\",(C516/SUM($B$3:$B$5000))*100)","v":100}]
[null,null,{"$f":"IF(B517 = \"\",C516,C516+B517)","v":36},100]
[null,null,36,100]
[null,null,36,100]
[null,null,36,100]
[null,null,36,100]
[null,null,36,100]
[null,null,36,100]
[null,null,36,100]
[null,null,36,100]
[null,null,36,100]
[null,null,36,100]
[null,null,36,100]
[null,null,36,100]
[null,null,36,100]
[null,null,36,100]
[null,null,36,100]
[null,null,36,100]
[null,null,36,100]
[null,null,36,100]
[null,null,36,100]
[null,null,36,100]
[null,null,36,100]
[null,null,36,100]
[null,null,36,100]
[null,null,36,100]
[null,null,36,100]
[null,null,36,100]
[null,null,36,100]
[null,null,36,100]
[null,null,36,100]
[null,null,36,100]
[null,null,36,100]
[null,null,36,100]
[null,null,36,100]
[null,null,36,100]
[null,null,36,100]
[null,null,36,100]
[null,null,36,100]
[null,null,36,100]
[null,null,36,100]
[null,null,36,100]
[null,null,36,100]
[null,null,36,100]
[null,null,36,100]
[null,null,36,100]
[null,null,36,100]
[null,null,36,100]
[null,null,36,100]
[null,null,36,100]
[null,null,36,100]
[null,null,36,100]
[null,null,36,100]
[null,null,36,100]
[null,null,36,100]
[null,null,36,100]
[null,null,36,100]
[null,null,36,100]
[null,null,36,100]
[null,null,36,100]
[null,null,36,100]
[null,null,36,100]
[null,null,36,100]
[null,null,36,100]
[null,null,36,{"$f":"IF(C580=\"\",\"\",(C580/SUM($B$3:$B$5000))*100)","v":100}]
[null,null,{"$f":"IF(B581 = \"\",C580,C580+B581)","v":36},100]
[null,null,36,100]
[null,null,36,100]
[null,null,36,100]
[null,null,36,100]
[null,null,36,100]
[null,null,36,100]
[null,null,36,100]
[null,null,36,100]
[null,null,36,100]
[null,null,36,100]
[null,null,36,100]
[null,null,36,100]
[null,null,36,100]
[null,null,36,100]
[null,null,36,100]
[null,null,36,100]
[null,null,36,100]
[null,null,36,100]
[null,null,36,100]
[null,null,36,100]
[null,null,36,100]
[null,null,36,100]
[null,null,36,100]
[null,null,36,100]
[null,null,36,100]
[null,null,36,100]
[null,null,36,100]
[null,null,36,100]
[null,null,36,100]
[null,null,36,100]
[null,null,36,100]
[null,null,36,100]
[null,null,36,100]
[null,null,36,100]
[null,null,36,100]
[null,null,36,100]
[null,null,36,100]
[null,null,36,100]
[null,null,36,100]
[null,null,36,100]
[null,null,36,100]
[null,null,36,100]
[null,null,36,100]
[null,null,36,100]
[null,null,36,100]
[null,null,36,100]
[null,null,36,100]
[null,null,36,100]
[null,null,36,100]
[null,null,36,100]
[null,null,36,100]
[null,null,36,100]
[null,null,36,100]
[null,null,36,100]
[null,null,36,100]
[null,null,36,100]
[null,null,36,100]
[null,null,36,100]
[null,null,36,100]
[null,null,36,100]
[null,null,36,100]
[null,null,36,100]
[null,null,36,{"$f":"IF(C644=\"\",\"\",(C644/SUM($B$3:$B$5000))*100)","v":100}]
[null,null,{"$f":"IF(B645 = \"\",C644,C644+B645)","v":36},100]
[null,null,36,100]
[null,null,36,100]
[null,null,36,100]
[null,null,36,100]
[null,null,36,100]
[null,null,36,100]
[null,null,36,100]
[null,null,36,100]
[null,null,36,100]
[null,null,36,100]
[null,null,36,100]
[null,null,36,100]
[null,null,36,100]
[null,null,36,100]
[null,null,36,100]
[null,null,36,100]
[null,null,36,100]
[null,null,36,100]
[null,null,36,100]
[null,null,36,100]
[null,null,36,100]
[null,null,36,100]
[null,null,36,100]
[null,null,36,100]
[null,null,36,100]
[null,null,36,100]
[null,null,36,100]
[null,null,36,100]
[null,null,36,100]
[null,null,36,100]
[null,null,36,100]
[null,null,36,100]
[null,null,36,100]
[null,null,36,100]
[null,null,36,100]
[null,null,36,100]
[null,null,36,100]
[null,null,36,100]
[null,null,36,100]
[null,null,36,100]
[null,null,36,100]
[null,null,36,100]
[null,null,36,100]
[null,null,36,100]
[null,null,36,100]
[null,null,36,100]
[null,null,36,100]
[null,null,36,100]
[null,null,36,100]
[null,null,36,100]
[null,null,36,100]
[null,null,36,100]
[null,null,36,100]
[null,null,36,100]
[null,null,36,100]
[null,null,36,100]
[null,null,36,100]
[null,null,36,100]
[null,null,36,100]
[null,null,36,100]
[null,null,36,100]
[null,null,36,100]
[null,null,36,{"$f":"IF(C708=\"\",\"\",(C708/SUM($B$3:$B$5000))*100)","v":100}]
[null,null,{"$f":"IF(B709 = \"\",C708,C708+B709)","v":36},100]
[null,null,36,100]
[null,null,36,100]
[null,null,36,100]
[null,null,36,100]
[null,null,36,100]
[null,null,36,100]
[null,null,36,100]
[null,null,36,100]
[null,null,36,100]
[null,null,36,100]
[null,null,36,100]
[null,null,36,100]
[null,null,36,100]
[null,null,36,100]
[null,null,36,100]
[null,null,36,100]
[null,null,36,100]
[null,null,36,100]
[null,null,36,100]
[null,null,36,100]
[null,null,36,100]
[null,null,36,100]
[null,null,36,100]
[null,null,36,100]
[null,null,36,100]
[null,null,36,100]
[null,null,36,100]
[null,null,36,100]
[null,null,36,100]
[null,null,36,100]
[null,null,36,100]
[null,null,36,100]
[null,null,36,100]
[null,null,36,100]
[null,null,36,100]
[null,null,36,100]
[null,null,36,100]
[null,null,36,100]
[null,null,36,100]
[null,null,36,100]
[null,null,36,100]
[null,null,36,100]
[null,null,36,100]
[null,null,36,100]
[null,null,36,100]
[null,null,36,100]
[null,null,36,100]
[null,null,36,100]
[null,null,36,100]
[null,null,36,100]
[null,null,36,100]
[null,null,36,100]
[null,null,36,100]
[null,null,36,100]
[null,null,36,100]
[null,null,36,100]
[null,null,36,100]
[null,null,36,100]
[null,null,36,100]
[null,null,36,100]
[null,null,36,100]
[null,null,36,100]
[null,null,36,{"$f":"IF(C772=\"\",\"\",(C772/SUM($B$3:$B$5000))*100)","v":100}]
[null,null,{"$f":"IF(B773 = \"\",C772,C772+B773)","v":36},100]
[null,null,36,100]
[null,null,36,100]
[null,null,36,100]
[null,null,36,100]
[null,null,36,100]
[null,null,36,100]
[null,null,36,100]
[null,null,36,100]
[null,null,36,100]
[null,null,36,100]
[null,null,36,100]
[null,null,36,100]
[null,null,36,100]
[null,null,36,100]
[null,null,36,100]
[null,null,36,100]
[null,null,36,100]
[null,null,36,100]
[null,null,36,100]
[null,null,36,100]
[null,null,36,100]
[null,null,36,100]
[null,null,36,100]
[null,null,36,100]
[null,null,36,100]
[null,null,36,100]
[null,null,36,100]
[null,null,36,100]
[null,null,36,100]
[null,null,36,100]
[null,null,36,100]
[null,null,36,100]
[null,null,36,100]
[null,null,36,100]
[null,null,36,100]
[null,null,36,100]
[null,null,36,100]
[null,null,36,100]
[null,null,36,100]
[null,null,36,100]
[null,null,36,100]
[null,null,36,100]
[null,null,36,100]
[null,null,36,100]
[null,null,36,100]
[null,null,36,100]
[null,null,36,100]
[null,null,36,100]
[null,null,36,100]
[null,null,36,100]
[null,null,36,100]
[null,null,36,100]
[null,null,36,100]
[null,null,36,100]
[null,null,36,100]
[null,null,36,100]
[null,null,36,100]
[null,null,36,100]
[null,null,36,100]
[null,null,36,100]
[null,null,36,100]
[null,null,36,100]
[null,null,36,{"$f":"IF(C836=\"\",\"\",(C836/SUM($B$3:$B$5000))*100)","v":100}]
[null,null,{"$f":"IF(B837 = \"\",C836,C836+B837)","v":36},100]
[null,null,36,100]
[null,null,36,100]
[null,null,36,100]
[null,null,36,100]
[null,null,36,100]
[null,null,36,100]
[null,null,36,100]
[null,null,36,100]
[null,null,36,100]
[null,null,36,100]
[null,null,36,100]
[null,null,36,100]
[null,null,36,100]
[null,null,36,100]
[null,null,36,100]
[null,null,36,100]
[null,null,36,100]
[null,null,36,100]
[null,null,36,100]
[null,null,36,100]
[null,null,36,100]
[null,null,36,100]
[null,null,36,100]
[null,null,36,100]
[null,null,36,100]
[null,null,36,100]
[null,null,36,100]
[null,null,36,100]
[null,null,36,100]
[null,null,36,100]
[null,null,36,100]
[null,null,36,100]
[null,null,36,100]
[null,null,36,100]
[null,null,36,100]
[null,null,36,100]
[null,null,36,100]
[null,null,36,100]
[null,null,36,100]
[null,null,36,100]
[null,null,36,100]
[null,null,36,100]
[null,null,36,100]
[null,null,36,100]
[null,null,36,100]
[null,null,36,100]
[null,null,36,100]
[null,null,36,100]
[null,null,36,100]
[null,null,36,100]
[null,null,36,100]
[null,null,36,100]
[null,null,36,100]
[null,null,36,100]
[null,null,36,100]
[null,null,36,100]
[null,null,36,100]
[null,null,36,100]
[null,null,36,100]
[null,null,36,100]
[null,null,36,100]
[null,null,36,100]
[null,null,36,{"$f":"IF(C900=\"\",\"\",(C900/SUM($B$3:$B$5000))*100)","v":100}]
[null,null,{"$f":"IF(B901 = \"\",C900,C900+B901)","v":36},100]
[null,null,36,100]
[null,null,36,100]
[null,null,36,100]
[null,null,36,100]
[null,null,36,100]
[null,null,36,100]
[null,null,36,100]
[null,null,36,100]
[null,null,36,100]
[null,null,36,100]
[null,null,36,100]
[null,null,36,100]
[null,null,36,100]
[null,null,36,100]
[null,null,36,100]
[null,null,36,100]
[null,null,36,100]
[null,null,36,100]
[null,null,36,100]
[null,null,36,100]
[null,null,36,100]
[null,null,36,100]
[null,null,36,100]
[null,null,36,100]
[null,null,36,100]
[null,null,36,100]
[null,null,36,100]
[null,null,36,100]
[null,null,36,100]
[null,null,36,100]
[null,null,36,100]
[null,null,36,100]
[null,null,36,100]
[null,null,36,100]
[null,null,36,100]
[null,null,36,100]
[null,null,36,100]
[null,null,36,100]
[null,null,36,100]
[null,null,36,100]
[null,null,36,100]
[null,null,36,100]
[null,null,36,100]
[null,null,36,100]
[null,null,36,100]
[null,null,36,100]
[null,null,36,100]
[null,null,36,100]
[null,null,36,100]
[null,null,36,100]
[null,null,36,100]
[null,null,36,100]
[null,null,36,100]
[null,null,36,100]
[null,null,36,100]
[null,null,36,100]
[null,null,36,100]
[null,null,36,100]
[null,null,36,100]
[null,null,36,100]
[null,null,36,100]
[null,null,36,100]
[null,null,36,{"$f":"IF(C964=\"\",\"\",(C964/SUM($B$3:$B$5000))*100)","v":100}]
[null,null,{"$f":"IF(B965 = \"\",C964,C964+B965)","v":36},100]
[null,null,36,100]
[null,null,36,100]
[null,null,36,100]
[null,null,36,100]
[null,null,36,100]
[null,null,36,100]
[null,null,36,100]
[null,null,36,100]
[null,null,36,100]
[null,null,36,100]
[null,null,36,100]
[null,null,36,100]
[null,null,36,100]
[null,null,36,100]
[null,null,36,100]
[null,null,36,100]
[null,null,36,100]
[null,null,36,100]
[null,null,36,100]
[null,null,36,100]
[null,null,36,100]
[null,null,36,100]
[null,null,36,100]
[null,null,36,100]
[null,null,36,100]
[null,null,36,100]
[null,null,36,100]
[null,null,36,100]
[null,null,36,100]
[null,null,36,100]
[null,null,36,100]
[null,null,36,100]
[null,null,36,100]
[null,null,36,100]
[null,null,36,100]

{"sheet":"Data_Entry_Fish_Bone","index":4,"n_rows":15,"n_cols":12,"rows_kept":15,"cut":false,"hidden":false,"merged":[[5,5,5,7]]}
[null,"Fishbone Analysis"]
[]
[]
[]
[]
[null,null,null,null,"PROBLEM DEFINITION","High No of Tickets"]
[]
[null,null,null,"Cause Category / Category","Branch 1","Branch 2","Branch 3","Branch 4","Branch 5","Branch 6","Branch 7","Branch 8"]
[null,null,null,"STATUS","Open","Open","Open","Open","Open","Open","Open","Open"]
[null,null,null,"Cause 1",123,null,12]
[null,null,null,"Cause 2",null,111]
[null,null,null,"Cause 3",null,"ABC"]
[null,null,null,"Cause 4",123]
[null,null,null,"Cause 5","fafff",456]
[null,null,null,"Cause 6",null,null,null,"XYZ"]

{"sheet":"Fish_Bone","index":5,"n_rows":1,"n_cols":1,"rows_kept":1,"cut":false,"hidden":false,"merged":[[48,18,48,19],[47,18,47,19]]}
[{"$f":"Data_Entry_Fish_Bone!$H$5","v":0}]

{"sheet":"5 Why ","index":6,"n_rows":1,"n_cols":5,"rows_kept":1,"cut":false,"hidden":false,"merged":[]}
[null,null,null,null,"Root Cause Analysis (5 Why Analysis)"]

{"sheet":"Actions Proposed","index":7,"n_rows":10,"n_cols":8,"rows_kept":10,"cut":false,"hidden":false,"merged":[]}
[]
[null,"S.No","Root cause category","Root cause Description","Action Proposal Description ","Action Proposal Category","Selected for Implementation?\n(Yes/No)","Reason/ rationale for selection of this action"]
[null,1,null,null,null,null,"Yes"]
[null,2,null,null,null,null,"No"]
[null,3]
[null,4]
[null,5]
[null,6]
[null,7]
[null,8]

{"sheet":"Action-Difficulty Benefit ","index":8,"n_rows":23,"n_cols":250,"rows_kept":23,"cut":false,"hidden":false,"merged":[[1,0,1,3],[1,4,1,9],[1,10,1,15],[1,16,2,16],[0,0,0,16]]}
["Guidelines:\n     1> Scale for the parameters is from 0 to 10 with 0 being the lowest and 10 being the highest\n     2> In difficulty parameter the value of 0 implies no difficulty and 10 implies very difficult\n     3> In benefit parameter the value of 0 implies no benefit and 10 implies highly beneficial\n     4> If Total Difficulty Value  is greater than or equal to 50% , it is highlighted in Red, else Green. If Total Benefits value is less than or equal to 25%, it is highlighted in Red, else Green\n5>"]
["Difficulty Benefit matrix",null,null,null,"Difficulty Factors",null,null,null,null,null,"Benefits",null,null,null,null,null,"Selected for Implementation?\n(Yes/No)"]
["Solution ID","Root Cause ","Action Proposal Description ","Action Proposal Category","Mgmt Support","Team Support","Time to implement","Cost to implement","People required","Total Difficulty","Sustainability","Scaleability","Adaptability","Cost benefits","Reliability","Total Benefits"]
[1,null,null,null,10,7,7,7,7,{"$f":"SUM(E4:I4)/50","v":0.76},7,2,2,1,1,{"$f":"SUM(K4:O4)/50","v":0.26},"Yes",null,null,null,null,null,"Action Proposal category",null,"Root Cause Category"]
[2,null,null,null,1,1,1,1,1,0.1,7,2,1,1,1,0.24,"Yes",null,null,null,null,null,"Training",null,"Skills",null,null,null,null,null,null,null,null,null,null,null,null,null,null,null,null,null,null,null,null,null,null,null,null,null,null,null,null,null,null,null,null,null,null,null,null,null,null,null,null,null,null,null,null,null,null,null,null,null,null,null,null,null,null,null,null,null,null,null,null,null,null,null,null,null,null,null,null,null,null,null,null,null,null,null,null,null,null,null,null,null,null,null,null,null,null,null,null,null,null,null,null,null,null,null,null,null,null,null,null,null,null,null,null,null,null,null,null,null,null,null,null,null,null,null,null,null,null,null,null,null,null,null,null,null,null,null,null,null,null,null,null,null,null,null,null,null,null,null,null,null,null,null,null,null,null,null,null,null,null,null,null,null,null,null,null,null,null,null,null,null,null,null,null,null,null,null,null,null,null,null,null,null,null,null,null,null,null,null,null,null,null,null,null,null,null,null,null,null,null,null,null,null,null,null,null,null,null,null,null,null,null,null,null,null,null,null,null,null,null,null,null,null,null,null,null,null,null,null,null,null,null,null,"Improper Internal CR management","Insufficient Induction on the Project"]
[3,null,null,null,1,5,0,0,7,0.26,3,4,3,1,0,0.22,"Yes",null,null,null,null,null,"Process Change/Re-ordering",null,"Methods/Processes",null,null,null,null,null,null,null,null,null,null,null,null,null,null,null,null,null,null,null,null,null,null,null,null,null,null,null,null,null,null,null,null,null,null,null,null,null,null,null,null,null,null,null,null,null,null,null,null,null,null,null,null,null,null,null,null,null,null,null,null,null,null,null,null,null,null,null,null,null,null,null,null,null,null,null,null,null,null,null,null,null,null,null,null,null,null,null,null,null,null,null,null,null,null,null,null,null,null,null,null,null,null,null,null,null,null,null,null,null,null,null,null,null,null,null,null,null,null,null,null,null,null,null,null,null,null,null,null,null,null,null,null,null,null,null,null,null,null,null,null,null,null,null,null,null,null,null,null,null,null,null,null,null,null,null,null,null,null,null,null,null,null,null,null,null,null,null,null,null,null,null,null,null,null,null,null,null,null,null,null,null,null,null,null,null,null,null,null,null,null,null,null,null,null,null,null,null,null,null,null,null,null,null,null,null,null,null,null,null,null,null,null,null,null,null,null,null,null,null,null,null,null,null,"Improper External CR management","Insufficient internal KT/Handover "]
[4,null,null,null,4,4,10,7,4,0.57999999999999996,5,8,2,6,9,0.6,null,null,null,null,null,null,"Standards/Guidelines",null,"Tools/Techniques",null,null,null,null,null,null,null,null,null,null,null,null,null,null,null,null,null,null,null,null,null,null,null,null,null,null,null,null,null,null,null,null,null,null,null,null,null,null,null,null,null,null,null,null,null,null,null,null,null,null,null,null,null,null,null,null,null,null,null,null,null,null,null,null,null,null,null,null,null,null,null,null,null,null,null,null,null,null,null,null,null,null,null,null,null,null,null,null,null,null,null,null,null,null,null,null,null,null,null,null,null,null,null,null,null,null,null,null,null,null,null,null,null,null,null,null,null,null,null,null,null,null,null,null,null,null,null,null,null,null,null,null,null,null,null,null,null,null,null,null,null,null,null,null,null,null,null,null,null,null,null,null,null,null,null,null,null,null,null,null,null,null,null,null,null,null,null,null,null,null,null,null,null,null,null,null,null,null,null,null,null,null,null,null,null,null,null,null,null,null,null,null,null,null,null,null,null,null,null,null,null,null,null,null,null,null,null,null,null,null,null,null,null,null,null,null,null,null,null,null,null,null,null,"Inadequate Unit Testing","Insufficient KT/Handover from Front Office"]
[5,null,null,null,null,null,null,null,null,0,null,null,null,null,null,0,null,null,null,null,null,null,"Automation",null,"Inputs",null,null,null,null,null,null,null,null,null,null,null,null,null,null,null,null,null,null,null,null,null,null,null,null,null,null,null,null,null,null,null,null,null,null,null,null,null,null,null,null,null,null,null,null,null,null,null,null,null,null,null,null,null,null,null,null,null,null,null,null,null,null,null,null,null,null,null,null,null,null,null,null,null,null,null,null,null,null,null,null,null,null,null,null,null,null,null,null,null,null,null,null,null,null,null,null,null,null,null,null,null,null,null,null,null,null,null,null,null,null,null,null,null,null,null,null,null,null,null,null,null,null,null,null,null,null,null,null,null,null,null,null,null,null,null,null,null,null,null,null,null,null,null,null,null,null,null,null,null,null,null,null,null,null,null,null,null,null,null,null,null,null,null,null,null,null,null,null,null,null,null,null,null,null,null,null,null,null,null,null,null,null,null,null,null,null,null,null,null,null,null,null,null,null,null,null,null,null,null,null,null,null,null,null,null,null,null,null,null,null,null,null,null,null,null,null,null,null,null,null,null,null,null,"Inadequate environment","Insufficient KT/Handover from Client"]
[6,null,null,null,null,null,null,null,null,0,null,null,null,null,null,0,null,null,null,null,null,null,"Knowledge Sharing/Transfer",null,null,null,null,null,null,null,null,null,null,null,null,null,null,null,null,null,null,null,null,null,null,null,null,null,null,null,null,null,null,null,null,null,null,null,null,null,null,null,null,null,null,null,null,null,null,null,null,null,null,null,null,null,null,null,null,null,null,null,null,null,null,null,null,null,null,null,null,null,null,null,null,null,null,null,null,null,null,null,null,null,null,null,null,null,null,null,null,null,null,null,null,null,null,null,null,null,null,null,null,null,null,null,null,null,null,null,null,null,null,null,null,null,null,null,null,null,null,null,null,null,null,null,null,null,null,null,null,null,null,null,null,null,null,null,null,null,null,null,null,null,null,null,null,null,null,null,null,null,null,null,null,null,null,null,null,null,null,null,null,null,null,null,null,null,null,null,null,null,null,null,null,null,null,null,null,null,null,null,null,null,null,null,null,null,null,null,null,null,null,null,null,null,null,null,null,null,null,null,null,null,null,null,null,null,null,null,null,null,null,null,null,null,null,null,null,null,null,null,null,null,null,null,null,null,"Insufficient/Incorrect Inputs","Non-availability of Subject matter expert"]
[7,null,null,null,null,null,null,null,null,{"$f":"SUM(E10:I10)/50","v":0},null,null,null,null,null,0,null,null,null,null,null,null,"Staffing",null,null,null,null,null,null,null,null,null,null,null,null,null,null,null,null,null,null,null,null,null,null,null,null,null,null,null,null,null,null,null,null,null,null,null,null,null,null,null,null,null,null,null,null,null,null,null,null,null,null,null,null,null,null,null,null,null,null,null,null,null,null,null,null,null,null,null,null,null,null,null,null,null,null,null,null,null,null,null,null,null,null,null,null,null,null,null,null,null,null,null,null,null,null,null,null,null,null,null,null,null,null,null,null,null,null,null,null,null,null,null,null,null,null,null,null,null,null,null,null,null,null,null,null,null,null,null,null,null,null,null,null,null,null,null,null,null,null,null,null,null,null,null,null,null,null,null,null,null,null,null,null,null,null,null,null,null,null,null,null,null,null,null,null,null,null,null,null,null,null,null,null,null,null,null,null,null,null,null,null,null,null,null,null,null,null,null,null,null,null,null,null,null,null,null,null,null,null,null,null,null,null,null,null,null,null,null,null,null,null,null,null,null,null,null,null,null,null,null,null,null,null,null,null,null,"Improper Version Mgmt","Inadequate process definition"]
[8,null,null,null,null,null,null,null,null,0,null,null,null,null,null,0,null,null,null,null,null,null,"Others",null,null,null,null,null,null,null,null,null,null,null,null,null,null,null,null,null,null,null,null,null,null,null,null,null,null,null,null,null,null,null,null,null,null,null,null,null,null,null,null,null,null,null,null,null,null,null,null,null,null,null,null,null,null,null,null,null,null,null,null,null,null,null,null,null,null,null,null,null,null,null,null,null,null,null,null,null,null,null,null,null,null,null,null,null,null,null,null,null,null,null,null,null,null,null,null,null,null,null,null,null,null,null,null,null,null,null,null,null,null,null,null,null,null,null,null,null,null,null,null,null,null,null,null,null,null,null,null,null,null,null,null,null,null,null,null,null,null,null,null,null,null,null,null,null,null,null,null,null,null,null,null,null,null,null,null,null,null,null,null,null,null,null,null,null,null,null,null,null,null,null,null,null,null,null,null,null,null,null,null,null,null,null,null,null,null,null,null,null,null,null,null,null,null,null,null,null,null,null,null,null,null,null,null,null,null,null,null,null,null,null,null,null,null,null,null,null,null,null,null,null,null,null,null,null,"Inadequate Integration/System Testing","Inadequate Process implementation"]
[9,null,null,null,null,null,null,null,null,0,null,null,null,null,null,0,null,null,null,null,null,null,null,null,null,null,null,null,null,null,null,null,null,null,null,null,null,null,null,null,null,null,null,null,null,null,null,null,null,null,null,null,null,null,null,null,null,null,null,null,null,null,null,null,null,null,null,null,null,null,null,null,null,null,null,null,null,null,null,null,null,null,null,null,null,null,null,null,null,null,null,null,null,null,null,null,null,null,null,null,null,null,null,null,null,null,null,null,null,null,null,null,null,null,null,null,null,null,null,null,null,null,null,null,null,null,null,null,null,null,null,null,null,null,null,null,null,null,null,null,null,null,null,null,null,null,null,null,null,null,null,null,null,null,null,null,null,null,null,null,null,null,null,null,null,null,null,null,null,null,null,null,null,null,null,null,null,null,null,null,null,null,null,null,null,null,null,null,null,null,null,null,null,null,null,null,null,null,null,null,null,null,null,null,null,null,null,null,null,null,null,null,null,null,null,null,null,null,null,null,null,null,null,null,null,null,null,null,null,null,null,null,null,null,null,null,null,null,null,null,null,null,null,null,null,null,null,null,"Inadequate design","Improper Estimation/Scheduling"]
[10,null,null,null,null,null,null,null,null,0,null,null,null,null,null,0,null,null,null,null,null,null,null,null,null,null,null,null,null,null,null,null,null,null,null,null,null,null,null,null,null,null,null,null,null,null,null,null,null,null,null,null,null,null,null,null,null,null,null,null,null,null,null,null,null,null,null,null,null,null,null,null,null,null,null,null,null,null,null,null,null,null,null,null,null,null,null,null,null,null,null,null,null,null,null,null,null,null,null,null,null,null,null,null,null,null,null,null,null,null,null,null,null,null,null,null,null,null,null,null,null,null,null,null,null,null,null,null,null,null,null,null,null,null,null,null,null,null,null,null,null,null,null,null,null,null,null,null,null,null,null,null,null,null,null,null,null,null,null,null,null,null,null,null,null,null,null,null,null,null,null,null,null,null,null,null,null,null,null,null,null,null,null,null,null,null,null,null,null,null,null,null,null,null,null,null,null,null,null,null,null,null,null,null,null,null,null,null,null,null,null,null,null,null,null,null,null,null,null,null,null,null,null,null,null,null,null,null,null,null,null,null,null,null,null,null,null,null,null,null,null,null,null,null,null,null,null,null,"Improper Coding/Implementation","Technical Skill Gap"]
[11,null,null,null,null,null,null,null,null,0,null,null,null,null,null,0,null,null,null,null,null,null,null,null,null,null,null,null,null,null,null,null,null,null,null,null,null,null,null,null,null,null,null,null,null,null,null,null,null,null,null,null,null,null,null,null,null,null,null,null,null,null,null,null,null,null,null,null,null,null,null,null,null,null,null,null,null,null,null,null,null,null,null,null,null,null,null,null,null,null,null,null,null,null,null,null,null,null,null,null,null,null,null,null,null,null,null,null,null,null,null,null,null,null,null,null,null,null,null,null,null,null,null,null,null,null,null,null,null,null,null,null,null,null,null,null,null,null,null,null,null,null,null,null,null,null,null,null,null,null,null,null,null,null,null,null,null,null,null,null,null,null,null,null,null,null,null,null,null,null,null,null,null,null,null,null,null,null,null,null,null,null,null,null,null,null,null,null,null,null,null,null,null,null,null,null,null,null,null,null,null,null,null,null,null,null,null,null,null,null,null,null,null,null,null,null,null,null,null,null,null,null,null,null,null,null,null,null,null,null,null,null,null,null,null,null,null,null,null,null,null,null,null,null,null,null,null,null,"Base Code/Re-used code error","Testing Skill Gap"]
[12,null,null,null,null,null,null,null,null,0,null,null,null,null,null,0,null,null,null,null,null,null,null,null,null,null,null,null,null,null,null,null,null,null,null,null,null,null,null,null,null,null,null,null,null,null,null,null,null,null,null,null,null,null,null,null,null,null,null,null,null,null,null,null,null,null,null,null,null,null,null,null,null,null,null,null,null,null,null,null,null,null,null,null,null,null,null,null,null,null,null,null,null,null,null,null,null,null,null,null,null,null,null,null,null,null,null,null,null,null,null,null,null,null,null,null,null,null,null,null,null,null,null,null,null,null,null,null,null,null,null,null,null,null,null,null,null,null,null,null,null,null,null,null,null,null,null,null,null,null,null,null,null,null,null,null,null,null,null,null,null,null,null,null,null,null,null,null,null,null,null,null,null,null,null,null,null,null,null,null,null,null,null,null,null,null,null,null,null,null,null,null,null,null,null,null,null,null,null,null,null,null,null,null,null,null,null,null,null,null,null,null,null,null,null,null,null,null,null,null,null,null,null,null,null,null,null,null,null,null,null,null,null,null,null,null,null,null,null,null,null,null,null,null,null,null,null,null,"Release/Build Management issue","Designer Skill Gap"]
[13,null,null,null,null,null,null,null,null,0,null,null,null,null,null,0,null,null,null,null,null,null,null,null,null,null,null,null,null,null,null,null,null,null,null,null,null,null,null,null,null,null,null,null,null,null,null,null,null,null,null,null,null,null,null,null,null,null,null,null,null,null,null,null,null,null,null,null,null,null,null,null,null,null,null,null,null,null,null,null,null,null,null,null,null,null,null,null,null,null,null,null,null,null,null,null,null,null,null,null,null,null,null,null,null,null,null,null,null,null,null,null,null,null,null,null,null,null,null,null,null,null,null,null,null,null,null,null,null,null,null,null,null,null,null,null,null,null,null,null,null,null,null,null,null,null,null,null,null,null,null,null,null,null,null,null,null,null,null,null,null,null,null,null,null,null,null,null,null,null,null,null,null,null,null,null,null,null,null,null,null,null,null,null,null,null,null,null,null,null,null,null,null,null,null,null,null,null,null,null,null,null,null,null,null,null,null,null,null,null,null,null,null,null,null,null,null,null,null,null,null,null,null,null,null,null,null,null,null,null,null,null,null,null,null,null,null,null,null,null,null,null,null,null,null,null,null,null,"Communication issue","Domain Skill Gap"]
[14,null,null,null,null,null,null,null,null,0,null,null,null,null,null,0,null,null,null,null,null,null,null,null,null,null,null,null,null,null,null,null,null,null,null,null,null,null,null,null,null,null,null,null,null,null,null,null,null,null,null,null,null,null,null,null,null,null,null,null,null,null,null,null,null,null,null,null,null,null,null,null,null,null,null,null,null,null,null,null,null,null,null,null,null,null,null,null,null,null,null,null,null,null,null,null,null,null,null,null,null,null,null,null,null,null,null,null,null,null,null,null,null,null,null,null,null,null,null,null,null,null,null,null,null,null,null,null,null,null,null,null,null,null,null,null,null,null,null,null,null,null,null,null,null,null,null,null,null,null,null,null,null,null,null,null,null,null,null,null,null,null,null,null,null,null,null,null,null,null,null,null,null,null,null,null,null,null,null,null,null,null,null,null,null,null,null,null,null,null,null,null,null,null,null,null,null,null,null,null,null,null,null,null,null,null,null,null,null,null,null,null,null,null,null,null,null,null,null,null,null,null,null,null,null,null,null,null,null,null,null,null,null,null,null,null,null,null,null,null,null,null,null,null,null,null,null,null,null,"Project Management skill gap"]
[15,null,null,null,null,null,null,null,null,0,null,null,null,null,null,0,null,null,null,null,null,null,null,null,null,null,null,null,null,null,null,null,null,null,null,null,null,null,null,null,null,null,null,null,null,null,null,null,null,null,null,null,null,null,null,null,null,null,null,null,null,null,null,null,null,null,null,null,null,null,null,null,null,null,null,null,null,null,null,null,null,null,null,null,null,null,null,null,null,null,null,null,null,null,null,null,null,null,null,null,null,null,null,null,null,null,null,null,null,null,null,null,null,null,null,null,null,null,null,null,null,null,null,null,null,null,null,null,null,null,null,null,null,null,null,null,null,null,null,null,null,null,null,null,null,null,null,null,null,null,null,null,null,null,null,null,null,null,null,null,null,null,null,null,null,null,null,null,null,null,null,null,null,null,null,null,null,null,null,null,null,null,null,null,null,null,null,null,null,null,null,null,null,null,null,null,null,null,null,null,null,null,null,null,null,null,null,null,null,null,null,null,null,null,null,null,null,null,null,null,null,null,null,null,null,null,null,null,null,null,null,null,null,null,null,null,null,null,null,null,null,null,null,null,null,null,null,null,null,"Resource shortage"]
[16,null,null,null,null,null,null,null,null,0,null,null,null,null,null,0,null,null,null,null,null,null,null,null,null,null,null,null,null,null,null,null,null,null,null,null,null,null,null,null,null,null,null,null,null,null,null,null,null,null,null,null,null,null,null,null,null,null,null,null,null,null,null,null,null,null,null,null,null,null,null,null,null,null,null,null,null,null,null,null,null,null,null,null,null,null,null,null,null,null,null,null,null,null,null,null,null,null,null,null,null,null,null,null,null,null,null,null,null,null,null,null,null,null,null,null,null,null,null,null,null,null,null,null,null,null,null,null,null,null,null,null,null,null,null,null,null,null,null,null,null,null,null,null,null,null,null,null,null,null,null,null,null,null,null,null,null,null,null,null,null,null,null,null,null,null,null,null,null,null,null,null,null,null,null,null,null,null,null,null,null,null,null,null,null,null,null,null,null,null,null,null,null,null,null,null,null,null,null,null,null,null,null,null,null,null,null,null,null,null,null,null,null,null,null,null,null,null,null,null,null,null,null,null,null,null,null,null,null,null,null,null,null,null,null,null,null,null,null,null,null,null,null,null,null,null,null,null,null,"Process skill gap"]
[17,null,null,null,null,null,null,null,null,0,null,null,null,null,null,0,null,null,null,null,null,null,null,null,null,null,null,null,null,null,null,null,null,null,null,null,null,null,null,null,null,null,null,null,null,null,null,null,null,null,null,null,null,null,null,null,null,null,null,null,null,null,null,null,null,null,null,null,null,null,null,null,null,null,null,null,null,null,null,null,null,null,null,null,null,null,null,null,null,null,null,null,null,null,null,null,null,null,null,null,null,null,null,null,null,null,null,null,null,null,null,null,null,null,null,null,null,null,null,null,null,null,null,null,null,null,null,null,null,null,null,null,null,null,null,null,null,null,null,null,null,null,null,null,null,null,null,null,null,null,null,null,null,null,null,null,null,null,null,null,null,null,null,null,null,null,null,null,null,null,null,null,null,null,null,null,null,null,null,null,null,null,null,null,null,null,null,null,null,null,null,null,null,null,null,null,null,null,null,null,null,null,null,null,null,null,null,null,null,null,null,null,null,null,null,null,null,null,null,null,null,null,null,null,null,null,null,null,null,null,null,null,null,null,null,null,null,null,null,null,null,null,null,null,null,null,null,null,null,"Insufficient Hardware"]
[18,null,null,null,null,null,null,null,null,0,null,null,null,null,null,0,null,null,null,null,null,null,null,null,null,null,null,null,null,null,null,null,null,null,null,null,null,null,null,null,null,null,null,null,null,null,null,null,null,null,null,null,null,null,null,null,null,null,null,null,null,null,null,null,null,null,null,null,null,null,null,null,null,null,null,null,null,null,null,null,null,null,null,null,null,null,null,null,null,null,null,null,null,null,null,null,null,null,null,null,null,null,null,null,null,null,null,null,null,null,null,null,null,null,null,null,null,null,null,null,null,null,null,null,null,null,null,null,null,null,null,null,null,null,null,null,null,null,null,null,null,null,null,null,null,null,null,null,null,null,null,null,null,null,null,null,null,null,null,null,null,null,null,null,null,null,null,null,null,null,null,null,null,null,null,null,null,null,null,null,null,null,null,null,null,null,null,null,null,null,null,null,null,null,null,null,null,null,null,null,null,null,null,null,null,null,null,null,null,null,null,null,null,null,null,null,null,null,null,null,null,null,null,null,null,null,null,null,null,null,null,null,null,null,null,null,null,null,null,null,null,null,null,null,null,null,null,null,null,"Inadequate Tool"]
[19,null,null,null,null,null,null,null,null,0,null,null,null,null,null,0,null,null,null,null,null,null,null,null,null,null,null,null,null,null,null,null,null,null,null,null,null,null,null,null,null,null,null,null,null,null,null,null,null,null,null,null,null,null,null,null,null,null,null,null,null,null,null,null,null,null,null,null,null,null,null,null,null,null,null,null,null,null,null,null,null,null,null,null,null,null,null,null,null,null,null,null,null,null,null,null,null,null,null,null,null,null,null,null,null,null,null,null,null,null,null,null,null,null,null,null,null,null,null,null,null,null,null,null,null,null,null,null,null,null,null,null,null,null,null,null,null,null,null,null,null,null,null,null,null,null,null,null,null,null,null,null,null,null,null,null,null,null,null,null,null,null,null,null,null,null,null,null,null,null,null,null,null,null,null,null,null,null,null,null,null,null,null,null,null,null,null,null,null,null,null,null,null,null,null,null,null,null,null,null,null,null,null,null,null,null,null,null,null,null,null,null,null,null,null,null,null,null,null,null,null,null,null,null,null,null,null,null,null,null,null,null,null,null,null,null,null,null,null,null,null,null,null,null,null,null,null,null,null,"Insufficient Software"]
[20,null,null,null,null,null,null,null,null,0,null,null,null,null,null,0,null,null,null,null,null,null,null,null,null,null,null,null,null,null,null,null,null,null,null,null,null,null,null,null,null,null,null,null,null,null,null,null,null,null,null,null,null,null,null,null,null,null,null,null,null,null,null,null,null,null,null,null,null,null,null,null,null,null,null,null,null,null,null,null,null,null,null,null,null,null,null,null,null,null,null,null,null,null,null,null,null,null,null,null,null,null,null,null,null,null,null,null,null,null,null,null,null,null,null,null,null,null,null,null,null,null,null,null,null,null,null,null,null,null,null,null,null,null,null,null,null,null,null,null,null,null,null,null,null,null,null,null,null,null,null,null,null,null,null,null,null,null,null,null,null,null,null,null,null,null,null,null,null,null,null,null,null,null,null,null,null,null,null,null,null,null,null,null,null,null,null,null,null,null,null,null,null,null,null,null,null,null,null,null,null,null,null,null,null,null,null,null,null,null,null,null,null,null,null,null,null,null,null,null,null,null,null,null,null,null,null,null,null,null,null,null,null,null,null,null,null,null,null,null,null,null,null,null,null,null,null,null,null,"Insufficient Standards/checklists/Templates"]